{"text_format":"1","workbook":"xlsx","n_sheets":1,"sheets":["CATALOGO FMUM202017"],"not_rendered":{"charts":0,"images":4,"macros":1,"external_links":1,"defined_names":26,"comments":0,"pivot_tables":0},"unopened":[],"bounds":{"document_bytes":16777216,"sheet_cells":100000,"rows_first":2000,"rows_last":500,"rows_between":2000,"halvings":0,"cell_chars":16384,"cell_head_chars":4096},"cells_cut":0,"cells_raw":0,"read":"whole","date_system":"1900"}

{"sheet":"CATALOGO FMUM202017","index":0,"n_rows":205,"n_cols":8,"rows_kept":205,"cut":false,"hidden":false,"merged":[[8,1,8,3],[9,1,9,7],[7,1,7,7],[2,1,2,7],[3,1,3,7],[4,1,4,7],[5,1,5,7],[6,1,6,7]]}
[]
[]
[null,"DIRECCION GENERAL DE OBRAS PUBLICAS "]
[null,"Y ASENTAMIENTOS HUMANOS"]
[null,"DIRECCION DE OBRAS PUBLICAS"]
[]
[]
[null,"OBRA: PAVIMENTACIÓN DE CALLE TOPETE, DE CALLE MANGUITO A CALLE HORIZONTE."]
[null,"No. DE OBRA:  FMUM202017"]
[null,"UBICACIÓN: CIUDAD DE LA PAZ, MUNICIPIO DE LA PAZ, B.C.S                              "]
[null,"CLAVE","DESCRIPCION","U.M.","CANTIDAD","PRECIO UNITARIO","PRECIO UNITARIO CON LETRA","IMPORTE"]
[]
[null,"I.-","TRABAJOS PRELIMINARES EN SEÑALAMIENTO",null,null,null,null,{"$f":"H40","v":0}]
[null,"II.-","GUARNICIONES",null,null,null,null,{"$f":"H43","v":0}]
[null,"III.-","CONSTRUCCION DE BANQUETAS",null,null,null,null,{"$f":"H49","v":0}]
[null,"IV.-","RED DE AGUA POTABLE",null,null,null,null,{"$f":"H78","v":0}]
[null,"V.-","TOMAS DOMICILIARIAS",null,null,null,null,{"$f":"H87","v":0}]
[null,"VI.-","RED DE ALCANTARILLADO SANITARIO",null,null,null,null,{"$f":"H97","v":0}]
[null,"VII.-","DESCARGAS DOMICILIARIAS",null,null,null,null,{"$f":"H109","v":0}]
[null,"VIII.-","MEDIA TENSION (MT)",null,null,null,null,{"$f":"H115","v":0}]
[null,"IX.-","BAJA TENSION (BT)",null,null,null,null,{"$f":"H123","v":0}]
[null,"X.-","TELMEX",null,null,null,null,{"$f":"H137","v":0}]
[null,"XI.-","MEGACABLE",null,null,null,null,{"$f":"H140","v":0}]
[null,"XII.-","ALUMBRADO PUBLICO",null,null,null,null,{"$f":"H156","v":0}]
[null,"XIII.-","TERRACERIAS",null,null,null,null,{"$f":"H166","v":0}]
[null,"XIV.-","OBRAS DE PROTECCION",null,null,null,null,{"$f":"H174","v":0}]
[null,"XV.-","PAVIMENTACION",null,null,null,null,{"$f":"H182","v":0}]
[null,"XVI.-","SEÑALAMIENTO VERTICAL Y HORIZONTAL",null,null,null,null,{"$f":"H199","v":0}]
[null,"XVII.-","LIMPIEZA DE OBRA",null,null,null,null,{"$f":"H202","v":0}]
[]
[null,null,"IMPORTE DE LA PRESENTE PROPUESTA: $ --",null,null,null,null,{"$f":"SUM(H13:H30)","v":0}]
[null,null,null,null,null,null,"IVA",{"$f":"H31*0.16","v":0}]
[null,null,null,null,null,null,null,{"$f":"H31+H32","v":0}]
[null,"CLAVE","DESCRIPCION","U.M.","CANTIDAD","PRECIO UNITARIO","PRECIO UNITARIO CON LETRA","IMPORTE"]
[null,"I.-TRABAJOS PRELIMINARES EN SEÑALAMIENTO"]
[null,"I.1","DESMONTE Y RECUPERACION DE POSTE DE ALUMBRADO PUBLICO PARA SU REUBICACION INCLUYE MANIOBRAS, DESMONTE DE SECCIONES DEL POSTE, LAMPARA, BASES DE CONCRETO, REGISTRO ELECTRICO, HERRAJES Y ACCESORIOS P.U.OT (LIBRAMIENTO SUR Y   NUEVO).","PZA",19,null,null,{"$f":"ROUND(E36*F36,2)","v":0}]
[null,"I.2","DEMOLICION DE GUARNICIONES DE CONCRETO EXISTENTES POR ENCONTRARSE EN MALAS CONDICIONES Y/O NO DAR LOS NIVELES DE PROYECTO. INCLUYE: CORTE CON CORTADORA DE DISCO, CARGA Y RETIRO DE ESCOMBRO FUERA DE LA OBRA HASTA EL LUGAR INDICADO POR LA SUPERVISION, LA MANO DE OBRA, HERRAMIENTA Y EQUIPO NECESARIO.","ML",1188.1199999999999,null,null,{"$f":"ROUND(E37*F37,2)","v":0}]
[null,"I.3","DEMOLICION DE BANQUETAS Y/O RAMPAS  DE CONCRETO EXISTENTES POR ENCONTRARSE EN MALAS CONDICIONES Y/O NO DAR LOS NIVELES DE PROYECTO . INCLUYE: CORTE CON CORTADORA DE DISCO, LIMPIEZA, CARGA Y RETIRO DE ESCOMBRO FUERA DE LA OBRA HASTA EL LUGAR INDICADO POR LA SUPERVISION, LA MANO DE OBRA, HERRAMIENTA Y EQUIPO NECESARIO.","M2",1425.74,null,null,{"$f":"ROUND(E38*F38,2)","v":0}]
[null,"I.4","DEMOLICIÓN POR MEDIOS MANUALES Y/O MECÁNICOS DE PAVIMENTO DE HIDRAULICO  (SIMPLE O REFORZADO), EXISTENTE EN MAL ESTADO DE HASTA 20 CM DE ESPESOR (INCLUYENDO LA EXTRACCIÓN, ACOPIO, CARGA Y ACARREOS DE LOS MATERIALES PRODUCTO DE LA DEMOLICIÓN, FUERA DE LA OBRA HASTA EL TIRADERO AUTORIZADO, SEGÚN LO INDIQUE LA SUPERVISIÓN). LA RECUPERACIÓN DE LA BASE HIDRÁULICA EXISTENTE DE HASTA 20 CMS DE ESPESOR COMPACTOS APROXIMADOS. INCLUYE: BARRIDO Y LIMPIEZA PREVIA (RETIRO DE LOS MATERIALES FUERA DE LA OBRA), DISGREGADO, ACAMELLONADO, CARGA Y ACARREOS DEL MATERIAL DE BASE HIDRÁULICA RECUPERADO, FUERA DE LA OBRA HASTA DONDE LO INDIQUE LA SUPERVISIÓN, PARA SU ALMACENAJE Y POSTERIOR REUTILIZACIÓN, EN ZONAS DE CRUCEROS CON OTRAS AVENIDAS REALIZAR EL CORTE PREVIO CON DISCO DE 3 MM. (1/8”) DE ANCHO, CON CORTADORA EN PAVIMENTO DE CONCRETO HIDRÁULICO Y/O ASFALTO, PARA EL PERFILADO DE LOSAS EN BOCACALLES, LOS MATERIALES, LA MANO DE OBRA, HERRAMIENTA Y EQUIPO NECESARIO.","M3",772.44,null,null,{"$f":"ROUND(E39*F39,2)","v":0}]
[null,null,null,null,null,null,"SUB TOTAL :  PRELIMINARES EN SEÑALAMIENTO",{"$f":"SUM(H36:H39)","v":0}]
[null,"II.- GUARNICIONES"]
[null,"II.1","GUARNICION DE CONCRETO F´c=150 kg/cm2. R.N. T.M.A. 19 MM. DE 15X20X40 CM DE SECCION TRAPEZOIDAL, CON JUNTAS DE EXPANSION A CADA 4.50 M. CON CARTON ASFALTADO DE 3/8\" DE ESPESOR. INCLUYE: CIMBRA, DESCIMBRADO, ELABORACION, COLADO, VIBRADO Y CURADO DEL CONCRETO,  TRANSPORTE A LA SIGUIENTE POSICION, MATERIALES, MANO DE OBRA Y HERRAMIENTA.","M3",36.68,null,null,{"$f":"ROUND(E42*F42,2)","v":0}]
[null,null,null,null,null,null,"SUB TOTAL :  GUARNICIONES",{"$f":"SUM(H42:H42)","v":0}]
[null,"III.- CONSTRUCCION DE BANQUETAS"]
[null,"III.1","EXCAVACION EN CORTE EN MATERIAL INVESTIGADO EN OBRA, EN AREAS DE BANQUETAS, GUARNICIONES, RAMPAS Y ADYACENTES, PARA DAR NIVELES DE PROYECTO. INCLUYE: TRAZO Y NIVELACION, CARGA, ACARREOS DENTRO Y FUERA DE LA OBRA DEL MATERIAL NO UTILIZABLE HASTA EL LUGAR INDICADO POR SUPERVISION, LA MANO DE OBRA, HERRAMIENTA Y EQUIPO NECESARIO.","M3",23.56,null,null,{"$f":"ROUND(E45*F45,2)","v":0}]
[null,"III.2","RELLENO COMPACTADO CON EQUIPO MECANICO CON MATERIAL SELECCIONADO PRODUCTO DE BANCO, LIBRE DE BOLEO MAYOR DE 3\", EN CAPAS DE 20 CM, COMPACTADO AL 85% PROCTOR, EN AREAS DE BANQUETAS Y ADYACENTES, PARA DAR NIVELES DE PROYECTO, SEGUN INDICACIONES DE SUPERVISION. INCLUYE: CRIBADO DEL MATERIAL, ACARREOS DENTRO DE LA OBRA, INCORPORACION DE HUMEDAD, MANO DE OBRA, HERRAMIENTA Y EQUIPO NECESARIO. ","M3",23.56,null,null,{"$f":"ROUND(E46*F46,2)","v":0}]
[null,"III.3","CONSTRUCCION DE BANQUETAS DE 8 CM DE ESPESOR, ACABADO, PULIDO Y RAYADO ESCOBILLADO FINO, EN LOSAS DE 1.50 M DE ANCHO EN PROMEDIO, SE USARA EL SISTEMA DE LOSAS INTERCALADAS CON UNA RELACION LARGO/ANCHO DE HASTA 1.25, JUNTAS FRIAS ACABADO CON VOLTEADOR.  EL CONCRETO SERA F´c= 150 KG/CM2. T.M.A. 3/4\". REV. DE 8 A 10 CM PREMEZCLADO ELABORADO EN PLANTA, INCLUYE: SUMINISTRO, COLADO, EXTENDIDO, VIBRADO Y ACARREOS DEL CONCRETO, SUMINISTRO Y APLICACIÓN DE CURACRETO EN COLOR BLANCO MARCA PASA O SIKA, CON EL EQUIPO ADECUADO, Y EN LA PROPORCION INDICADA POR EL FABRICANTE, CIMBRA EN FRONTERAS, NIVELACION, AFINE, COMPACTACION AL 95 % EN UN ESPESOR DE 15 CM Y PREPARACION DE LA SUPERFICIE DEL TERRENO, ACARREOS DE LOS MATERIALES DENTRO DE LA OBRA, LIMPIEZA GENERAL ANTES Y UNA VEZ CONCLUIDOS LOS TRABAJOS, CARGA Y ACARREO DE LOS MATERIALES NO UTILIZABLES HASTA EL LUGAR INDICADO POR SUPERVISION, TRAZO Y NIVELACION, LOS MATERIALES, MANO DE OBRA,  HERRAMIENTA Y EQUIPO NECESARIO..  NOTA: EL LICITANTE DEBERA DE CONSIDERAR LAS PRUEBAS DE LABORATORIO RESPECTIVAS EFECTUADAS POR UN LABORATORIO EXTERNO AL MISMO Y PRESENTARSE AL MOMENTO DE REALIZAR EL TRAMITE PARA EL PAGO DE ESTIMACIONES.","M2",810,null,null,{"$f":"ROUND(E47*F47,2)","v":0}]
[null,"III.4","FABRICACION DE RAMPAS PARA EL ACCESO DE PERSONAS CON CAPACIDADES DIFERENTES, DE CONCRETO DE 8 CM DE ESPESOR Y CON UNA PENDIENTE MAXIMA DEL 8%, ACABADO PULIDO Y RAYADO TRANSVERSAL CON PEINE METALICO PARA DAR ACABADO ANTIDERRAPANTE, EN LOSAS DE 1.20 M. DE ANCHO COMO MINIMO. CON BORDES LATERALES DE 10 CM DE ALTURA Y 10 CM DE ANCHO DE CONCRETO, EN EL DESARROLLO LONGITUDINAL DE LA RAMPA, ACABADO EN ARISTAS CON VOLTEADOR. EL CONCRETO SERA F´c=150 KG/CM2. T.M.A. 3/4\". REV. DE 8 A 10 CM. PREMEZCLADO ELABORADO EN PLANTA. INCLUYE: SUMINISTRO, COLADO, EXTENDIDO, VIBRADO Y ACARREOS DEL CONCRETO, SUMINISTRO Y APLICACION DE CURACRETO EN COLOR BLANCO MARCA PASA O SIKA, CON EL EQUIPO ADECUADO, Y EN LA PROPORCION INDICADA POR EL FABRICANTE, CIMBRA EN FRONTERAS, NIVELACION, AFINE, COMPACTACION AL 95 % EN UN ESPESOR DE 15 CM Y PREPARACION DE LA SUPERFICIE DEL TERRENO, ACARREOS DE LOS MATERIALES DENTRO DE LA OBRA, LIMPIEZA GENERAL ANTES Y UNA VEZ CONCLUIDOS LOS TRABAJOS, CARGA Y ACARREOS DE LOS MATERIALES NO UTILIZABLES HASTA EL LUGAR INDICADO POR SUPERVISION, TRAZO Y NIVELACION, MATERIALES, MANO DE OBRA, HERRAMIENTA Y EQUIPO NECESARIO. U.O.T. (NOTA: EL LICITANTE DEBERA DE CONSIDERAR LAS PRUEBAS DE LABORATORIO RESPECTIVAS, EFECTUADAS POR UN LABORATORIO EXTERNO AL MISMO Y PRESENTARSE AL MOMENTO DE REALIZAR EL TRAMITE PARA EL PAGO DE ESTIMACIONES).","M2",10.08,null,null,0]
[null,null,null,null,null,null,"SUB TOTAL CONSTRUCCION DE BANQUETAS :",{"$f":"SUM(H45:H48)","v":0}]
[null,"IV.- RED DE AGUA POTABLE"]
[null,"IV.1","TRAZO Y NIVELACION DE RED GENERAL DE AGUA POTABLE CON APARATOS TOPOGRAFICOS DE PRECISION, ESTABLECIENDO  NIVELES  Y   REFERENCIAS, AL INICIO Y DURANTE EL PROCESO DE LA OBRA INCLUYE:   ESTACAS,  MOJONERAS,   BANCO  DE NIVEL, MATERIALES, MANO DE OBRA, EQUIPO Y HERRAMIENTA.","ML",650,null,null,{"$f":"ROUND(E51*F51,2)","v":0}]
[null,"IV.2","EXCAVACION POR MEDIOS MECANICOS DE ZANJAS EN MATERIAL TIPO \"II\"  DE 0 A 2 MTS. DE PROFUNDIDAD, INCLUYE: EQUIPO, HERRAMIENTA, MANO DE OBRA Y MATERIALES.","M3",170.82,null,null,{"$f":"ROUND(E52*F52,2)","v":0}]
[null,"IV.3","SUMINISTRO Y COLOCACION DE TUBO DE PVC HIDRAULICO SERIE INGLESA RD 32.5 DE 6\" (150 MM) DE DIAMETRO, INCLUYE: AFINE DE FONDO Y TALUDES DE CEPAS, COMPACTACION DE FONDO EN ZANJAS, SUMINISTRO Y COLOCACION DE CAMA DE ARENA, NIVELACION DE TUBERIA PARA DAR PENDIENTES DE PROYECTO, SUMINISTRO Y COLOCACION DE CINTA DE PRECAUCION O PELIGRO, ACOSTILLADO, MATERIALES, MANO DE OBRA, EQUIPO Y HERRAMIENTA.","ML",664.36,null,null,{"$f":"ROUND(E53*F53,2)","v":0}]
[null,"IV.4","SUMINISTRO Y COLOCACION DE EXTREMIDAD ESPIGA  DE PVC HIDRAULICO DE 6\" (150 MM), INCLUYE: MATERIALES, MANO DE OBRA, HERRAMIENTA Y EQUIPO.","PZA",3,null,null,0]
[null,"IV.5","SUMINISTRO Y COLOCACION DE VALVULA DE SECCIONAMIENTO TIPO COMPUERTA DE VASTAGO FIJO DE 6\" (150 MM), INCLUYE: MANO DE OBRA, EQUIPO, MATERIALES Y HERRAMIENTA.","PZA",3,null,null,0]
[null,"IV.6","SUMINISTRO Y COLOCACION DE TAPON CAMPANA DE PVC HIDRAULICO DE 6\" (150 MM), INCLUYE: MATERIALES, MANO DE OBRA, HERRAMIENTA Y EQUIPO.","PZA",3,null,null,0]
[null,"IV.7","SUMINISTRO Y COLOCACION DE TUBO DE PVC HIDRAULICO SERIE INGLESA RD 32.5 DE 3\" (75 MM) DE DIAMETRO, INCLUYE:  AFINE DE FONDO Y TALUDES DE CEPAS, COMPACTACION DE FONDO EN ZANJAS, SUMINISTRO Y COLOCACION DE CAMA DE ARENA, NIVELACION DE TUBERIA PARA DAR PENDIENTES DE PROYECTO, SUMINISTRO Y COLOCACION DE CINTA DE PRECAUCION O PELIGRO, MATERIALES, MANO DE OBRA, EQUIPO Y HERRAMIENTA.","ML",93.4,null,null,0]
[null,"IV.8","SUMINISTRO Y COLOCACION DE EXTREMIDAD ESPIGA  DE PVC HIDRAULICO DE 3\" (75 MM), INCLUYE: MATERIALES, MANO DE OBRA, HERRAMIENTA Y EQUIPO.","PZA",1,null,null,0]
[null,"IV.9","SUMINISTRO Y COLOCACION DE VALVULA DE SECCIONAMIENTO TIPO COMPUERTA DE VASTAGO FIJO DE 3\" (75 MM), INCLUYE: MANO DE OBRA, EQUIPO, MATERIALES Y HERRAMIENTA.","PZA",1,null,null,0]
[null,"IV.10","SUMINISTRO Y COLOCACION DE TAPON CAMPANA DE PVC HIDRAULICO DE 3\" (75 MM), INCLUYE: MATERIALES, MANO DE OBRA, HERRAMIENTA Y EQUIPO.","PZA",1,null,null,0]
[null,"IV.11","FABRICACION DE BROCAL  Y COLOCACION DE LOSA  TAPA PARA CAJA DE OPERACIÓN DE VALVULAS CON TAPA Fo. Fo. VALIDADA POR SAPA. CENTRADA PARA CAJA TIPO 2, INCLUYE: MATERIALES, MANO DE OBRA, EQUIPO Y HERRAMIENTA.","PZA",4,null,null,0]
[null,"IV.12","CONSTRUCCION DE CAJA DE OPERACIÓN DE VALVULAS DE TIPO 2 DE 1.28 x 1.18 M A BASE DE FIRME DE CONCRETO ARMADO, MUROS DE TABIQUE 5 x 12 x 24 CM, APLANADO INTERIOR CEMENO-ARENA 1:3, Y LOSA DE CONCRETO ARMADO, INCLUYE: EXCAVACION, AFINE DE FONDO, RELLENO, MATERIALES, MANO DE OBRA, HERRAMIENTA Y EQUIPO.","PZA",4,null,null,0]
[null,"IV.13","SUMINISTRO Y COLADO DE CONCRETO PARA ATRAQUES EN CAMBIOS DE DIRECCION O CRUCEROS, INCLUYE: CIMBRA COMUN, MATERIALES, MANO DE OBRA, HERRRAMIENTA Y EQUIPO.","M3",1.08,null,null,0]
[null,"IV.14","SUMINISTRO Y COLOCACION DE TORNILLOS CON CABEZA Y TUERCA HEXAGONAL DE 5/8\" x 2 1/2\", INCLUYE: MANO DE OBRA, MATERIALES, EQUIPO Y HERRAMIENTA.","PZA",64,null,null,0]
[null,"IV.15","RELLENO COMPACTADO CON EQUIPO MECANICO MANUAL EN CAPAS DE 20 CM EN CEPA CON MATERIAL SELECCIONADO PRODUCTO DE LA EXCAVACION (CRIBADO POR LA MALLA DE 2 1/2\") LIBRE DE BOLEO MAYOR DE 3\" , COMPACTADO AL 90% PROCTOR. INCLUYE: CRIBADO DEL MATERIAL, ACARREOS DENTRO DE LA OBRA, INCORPORACION DE  HUMEDAD, MANO DE OBRA, HERRAMIENTA Y EQUIPO NECESARIO. \n","M3",84,null,null,0]
[null,"IV.16","RELLENO COMPACTADO CON EQUIPO MECANICO MANUAL EN CAPAS DE 20 CM EN CEPA CON MATERIAL SELECCIONADO PRODUCTO DE BANCO LIBRE DE BOLEO MAYOR DE 3\" , COMPACTADO AL 90% PROCTOR. INCLUYE: CRIBADO DEL MATERIAL, ACARREOS DENTRO DE LA OBRA, INCORPORACION DE HUMEDAD, MANO DE OBRA, HERRAMIENTA Y EQUIPO NECESARIO. \n","M3",36,null,null,0]
[null,"IV.17","CARGA MECANICA Y ACARREO DE MATERIAL PRODUCTO DE LA EXCAVACION DENTRO DE OBRA DE LA RED GENERAL DE AGUA POTABLE , INCLUYE: MANO DE OBRA, EQUIPO Y HERRAMIENTA. (INTERNO)","M3",65,null,null,0]
[null,"IV.18","SUMINISTRO Y COLOCACION  DE TEE DE PVC HIDRAULICO DE 3\" x 3\" (75 x 75 MM), INCLUYE:  MATERIALES, MANO DE OBRA, HERRAMIENTA Y EQUIPO.","PZA",2,null,null,0]
[null,"IV.19","SUMINISTRO Y COLOCACION DE CODO DE PVC HIDRAULICO DE 90X3\", INCLUYE: MATERIALES, MANO DE OBRA, EQUIPO Y HERRAMIENTA","PZA",1,null,null,0]
[null,"IV.20","SUMINISTRO Y COLOCACION DE EXTREMIDAD CAMPANA DE PVC HIDRAULICO DE 3\"(75MM), INCLUYE: MATERIALES, MANO DE OBRA, HERRAMIENTA Y EQUIPO.","PZA",1,null,null,0]
[null,"IV.21","SUMINISTRO Y COLOCACION DE EMPAQUES DE NEOPRENO DE 3\" (100MM) INCLUYE: MATERIALES, MANO DE OBRA, EQUIPO Y HERRAMIENTA.","PZA",1,null,null,0]
[null,"IV.22","SUMINISTRO Y COLOCACION DE TORNILLO CON CABEZA Y TUERCA HEXAGONAL DE 5/8\" X 3\", INLCUYE: MATERIAL, MANO DE OBRA, EQUIPO Y HERRAMIENTA","PZA",16,null,null,0]
[null,"IV.23","CONSTRUCCION DE CAJA DE OPERACION DE VALVULAS TIPO 9 DE 1.58X1.18 A BASE DE FIRME DE CONCRETO ARMADO, MUROS DE BLOCK 12X20X40CM, APLANADO CEMENTO-ARENA 1:3, Y LOSA DE CONCRETO ARMADO, INCLUYE: EXACAVACION, AFINE DE FONDO, RELLENO, MATERIALES, MANO DE OBRA, HERRAMIENTA Y EQUIPO.","PZA",1,null,null,0]
[null,"IV.24","CONSTRUCCION DE CAJA DE OPERACION DE VALVULAS TIPO 12 DE 1.48X1.48 A BASE DE FIRME DE CONCRETO ARMADO, MUROS DE BLOCK 12X20X40CM, APLANADO CEMENTO-ARENA 1:3, Y LOSA DE CONCRETO ARMADO, INCLUYE: EXACAVACION, AFINE DE FONDO, RELLENO, MATERIALES, MANO DE OBRA, HERRAMIENTA Y EQUIPO.","PZA",4,null,null,0]
[null,"IV.25","CONSTRUCCION DE ATRAQUES DE CONCRETO F´C=200 KG/CM2, PARA TUBO DE 60X60X30 CM, INCLUYE: MATERIAL, MANO DE OBRA, EQUIPO Y HERRAMIENTA","M3",1,null,null,0]
[null,"IV.26","CARGA Y ACARREO POR MEDIOS MECANICOS DEL MATERIAL PRODUCTO DEL CORTE NO UTILIZABLE PARA EL PRIMER KILOMETRO DE DISTANCIA. INCLUYE EL EQUIPO NECESARIO.","M3",222.07,null,null,0]
[null,"IV.27","ACARREO  EN CAMION DEL MATERIAL PRODUCTO DEL CORTE PARA KILOMETROS SUBSECUENTES. (6 KM). INCLUYE: EL EQUIPO NECESARIO.","M3-KM",222.07,null,null,0]
[null,null,null,null,null,null,"SUB TOTAL RED DE AGUA POTABLE :",{"$f":"SUM(H51:H77)","v":0}]
[null,"V.- TOMAS DOMICILIARIAS"]
[null,"V.1","EXCAVACION POR MEDIOS MECANICOS DE ZANJAS EN MATERIAL TIPO \"II\"  DE 0 A 2 MTS. DE PROFUNDIDAD, INCLUYE: EQUIPO, HERRAMIENTA, MANO DE OBRA Y MATERIALES.","M3",36,null,null,{"$f":"ROUND(E80*F80,2)","v":0}]
[null,"V.2","\"TOMA DE AGUA POTABLE DE 4\"\"x1/2\"\" CON TUBO KITEC DE 1/2\"\" DE DIAMETRO. INCLUYE: ABRAZADERA DE PVC TIPO-II. C/VALVULA DE INSER.Y SACABOCADO INTEGRADO FLOTAP DE 3\"\"x3/4\"\", REDUCCION DE 3/4\"\" A 1/2\"\", INSERTOS Y CONECTORES PARA KITEC, TUBO KITEC DE 1/2\"\" DE DIAM. VALVULA DE ANGULO TIPO BOLA, VALVULA MUNICIPAL DE BLOQUEO SENCILLO,  CAJA DE PROTECCION DE PVC DE COLOR NEGRO REFORZADA DE 5 KG DE PESO (CON UNA RESISTENCIA MAXMA DE 4000 KG); CON LAS SIGUIENTES MEDIDAS: EN LA PARTE SUPERIOR DE 34x21 CM. Y BASE DE 42x30 CM. (INCLUYE CEJA PERIMETRAL DE 1.5 CM DE ANCHO Y 2.5 CM DE ESPESOR). CON ALTURA TOTAL DE 18.50 CM. OLOCADA SOBRE PLANTILLA DE MORTERO DE CEMENTO-ARENA 1:3 DE 6 CM DE ESPESOR, REVIO EL NIVELADO Y COMPACTACION DEL TERRENO NATURAL.MATERIALES, MANO DE OBRA Y HERRAMIENTA. PARA RED DE AGUA POTABLE DE PVC HIDRAULICO DE 4\"\" ( 101 MM) DE DIAMETRO.SONDEOS PARA LOCALIZACION DE LA TOMA,  DEMOLICIONES NECESARIAS PARA SU INSTALACION, REPARACION PROVISIONAL DE TOMA DOMICILIARIA; INTERCONEXIONES EN TUBO DE COBRE, MANGUERA HIDRAULICA Y/O P.V.C. HIDRAULICO CED. 40 SEGUN SEA EL CASO. U.O.T.(LONGITUD DE 8.00 M)\"","PZA",2,null,null,{"$f":"ROUND(E81*F81,2)","v":0}]
[null,"V.3","\"TOMA DE AGUA POTABLE DE 4\"\"x1/2\"\" CON TUBO KITEC DE 1/2\"\" DE DIAMETRO. INCLUYE: ABRAZADERA DE PVC TIPO-II. C/VALVULA DE INSER.Y SACABOCADO INTEGRADO FLOTAP DE 3\"\"x3/4\"\",  EDUCCION DE 3/4\"\" A 1/2\"\", INSERTOS Y CONECTORES PARA KITEC, TUBO KITEC DE 1/2\"\" DE DIAM. VALVULA DE ANGULO TIPO BOLA, VALVULA MUNICIPAL DE BLOQUEO SENCILLO,  CAJA DE PROTECCION DE PVC DE COLOR NEGRO REFORZADA DE 5 KG DE PESO (CON UNA RESISTENCIA MAXMA DE 4000 KG); CON LAS SIGUIENTES MEDIDAS: EN LA PARTE SUPERIOR DE 34x21 CM. Y BASE DE 42x30 CM. (INCLUYE CEJA PERIMETRAL DE 1.5 CM DE ANCHO Y 2.5 CM DE ESPESOR). CON ALTURA TOTAL DE 18.50 CM. COLOCADA SOBRE PLANTILLA DE MORTERO DE CEMENTO-ARENA 1:3 DE 6 CM DE ESPESOR, PREVIO EL NIVELADO Y COMPACTACION DEL TERRENO NATURAL. MATERIALES, MANO DE OBRA Y HERRAMIENTA. PARA RED DE AGUA POTABLE DE PVC HIDRAULICO DE 4\"\" ( 101 MM) DE DIAMETRO.SONDEOS PARA LOCALIZACION DE LA TOMA,  DEMOLICIONES NECESARIAS PARA SU INSTALACION, REPARACION PROVISIONAL DE TOMA DOMICILIARIA; INTERCONEXIONES EN TUBO DE COBRE, MANGUERA HIDRAULICA Y/O P.V.C. HIDRAULICO CED. 40 SEGUN SEA EL CASO. U.O.T.(LONGITUD DE 4.00 M)\"","PZA",4,null,null,0]
[null,"V.4","RELLENO COMPACTADO CON EQUIPO MECANICO MANUAL EN CAPAS DE 20 CM EN CEPA CON MATERIAL SELECCIONADO PRODUCTO DE LA EXCAVACION (CRIBADO POR LA MALLA DE 2 1/2\") LIBRE DE BOLEO MAYOR DE 3\" , COMPACTADO AL 90% PROCTOR. INCLUYE: CRIBADO DEL MATERIAL, ACARREOS DENTRO DE LA OBRA, INCORPORACION DE  HUMEDAD, MANO DE OBRA, HERRAMIENTA Y EQUIPO NECESARIO. \n","M3",17.64,null,null,0]
[null,"V.5","RELLENO COMPACTADO CON EQUIPO MECANICO MANUAL EN CAPAS DE 20 CM EN CEPA CON MATERIAL SELECCIONADO PRODUCTO DE BANCO LIBRE DE BOLEO MAYOR DE 3\" , COMPACTADO AL 90% PROCTOR. INCLUYE: CRIBADO DEL MATERIAL, ACARREOS DENTRO DE LA OBRA, INCORPORACION DE HUMEDAD, MANO DE OBRA, HERRAMIENTA Y EQUIPO NECESARIO. \n","M3",7.56,null,null,0]
[null,"V.6","CARGA MECANICA Y ACARREO DE MATERIAL PRODUCTO DE LA EXCAVACION DE LA RED GENERAL DE ALCANTARILLADO SANITARIO ","M3",14.04,null,null,0]
[null,"V.7","COLOCACION DE DETALLADO DE CUADRO DE MEDICION DE AGUA POTABLE, INLCLUYE: MATERIALES, MANO DE OBRA, EQUIPO Y HERRAMIENTA.","PZA",4,null,null,0]
[null,null,null,null,null,null,"SUB TOMAS DOMICILIARIAS :",{"$f":"SUM(H80:H86)","v":0}]
[null,"VI.- RED DE ALCANTARILLADO SANITARIO"]
[null,"VI.1","TRAZO Y NIVELACION DE RED GENERAL DE ALCANTARILLADO SANITARIO CON APARATOS TOPOGRAFICOS DE PRECISION, ESTABLECIENDO  NIVELES  Y   REFERENCIAS, AL INICIO Y DURANTE EL PROCESO DE LA OBRA INCLUYE:   ESTACAS,  MOJONERAS,   BANCO  DE NIVEL, MATERIALES, MANO DE OBRA, EQUIPO Y HERRAMIENTA.","ML",557.73,null,null,{"$f":"ROUND(E89*F89,2)","v":0}]
[null,"VI.2","EXCAVACION POR MEDIOS MECANICOS DE ZANJAS EN MATERIAL TIPO \"II\"  DE 0 A 2 MTS. DE PROFUNDIDAD, INCLUYE: EQUIPO, HERRAMIENTA, MANO DE OBRA Y MATERIALES.","M3",199.29,null,null,0]
[null,"VI.3","SUMINISTRO Y COLOCACIÓN DE TUBERÍA DE PVC SANITARIO RD-35 DE 8\" DE DIAMETRO (200 MM), INCLUYE: AFINE DE FONDO Y TALUDES DE CEPAS, COMPACTACION DE FONDO EN ZANJAS, SUMINISTRO Y COLOCACION DE CAMA DE ARENA, NIVELACION DE TUBERIA PARA DAR PENDIENTES DE PROYECTO,ACOSTILLADO,  SUMINISTRO Y COLOCACION DE CINTA DE PRECAUCION O PELIGRO, MATERIALES, MANO DE OBRA, HERRAMIENTA Y EQUIPO.","ML",555.73,null,null,0]
[null,"VI.4","RELLENO COMPACTADO CON EQUIPO MECANICO MANUAL EN CAPAS DE 20 CM EN CEPA CON MATERIAL SELECCIONADO PRODUCTO DE LA EXCAVACION (CRIBADO POR LA MALLA DE 2 1/2\") LIBRE DE BOLEO MAYOR DE 3\" , COMPACTADO AL 90% PROCTOR. INCLUYE: CRIBADO DEL MATERIAL, ACARREOS DENTRO DE LA OBRA, INCORPORACION DE  HUMEDAD, MANO DE OBRA, HERRAMIENTA Y EQUIPO NECESARIO. ","M3",140,null,null,0]
[null,"VI.5","CARGA MECANICA Y ACARREO DE MATERIAL PRODUCTO DE LA EXCAVACION DE LA RED GENERAL DE ALCANTARILLADO SANITARIO ","M3",78,null,null,0]
[null,"VI.6","CONSTRUCCION DE POZO DE VISITA  DE ALTURA VARIABLE A BASE DE LOSA DE PISO DE CONCRETO ARMADO DE 15CM DE ESPESOR, PAREDES DE CUÑA TRAPEZOIDAL Y APLANADO CON MORTERO CEMENTO-ARENA 1:3 ACABADO FINO, INCLUYE: MANO DE OBRA, EQUIPO, MATERIALES Y HERRAMIENTA.","PZA",11,null,null,0]
[null,"VI.7","SUMINISTRO Y COLOCACION  DE TAPA DE Fo. Fo. Y FABRICACION DE LOSA TAPA, INCLUYE, ENRRACE Y NIVELACION DE POZO DE VISITA, MATERIALES, MANO DE OBRA, EQUIPO Y HERRAMIENTA.","JGO",11,null,null,0]
[null,"VI.8","CARGA MECANICA Y ACARREO DE MATERIAL PRODUCTO DE LA EXCAVACION FUERA DE LA OBRA DE LA RED SANITARIA, INCLUYE: MANO DE OBRA, EQUIPO Y HERRAMIENTA.","M3",259.08,null,null,0]
[null,null,null,null,null,null,"SUB TOTAL RED DE ALCANTARILLADO SANITARIO :",{"$f":"SUM(H89:H96)","v":0}]
[null,"VII.- DESCARGAS DOMICILIARIAS"]
[null,"VII.1","EXCAVACION POR MEDIOS MECANICOS DE ZANJAS EN MATERIAL TIPO \"II\"  DE 0 A 2 MTS. DE PROFUNDIDAD, INCLUYE: EQUIPO, HERRAMIENTA, MANO DE OBRA Y MATERIALES.","M3",10.5,null,null,{"$f":"ROUND(E99*F99,2)","v":0}]
[null,"VII.2","SUMINISTRO Y COLOCACIÓN DE TUBERÍA DE PVC SANITARIO RD-35 DE 6\" DE DIAMETRO (150 MM), INCLUYE: AFINE DE FONDO Y TALUDES DE CEPAS, COMPACTACION DE FONDO EN ZANJAS, SUMINISTRO Y COLOCACION DE CAMA DE ARENA, NIVELACION DE TUBERIA PARA DAR PENDIENTES DE PROYECTO,ACOSTILLADO,  SUMINISTRO Y COLOCACION DE CINTA DE PRECAUCION O PELIGRO,  MATERIALES, MANO DE OBRA, HERRAMIENTA Y EQUIPO.","ML",60,null,null,{"$f":"ROUND(E100*F100,2)","v":0}]
[null,"VII.3","SUMINISTRO Y COLOCACIÓN DE CODO DE PVC SANITARIO RD-35 DE 45° x  6\" DE DIAMETRO (45° x150 MM), INCLUYE: MATERIALES, MANO DE OBRA, HERRAMIENTA Y EQUIPO.","PZA",4,null,null,{"$f":"ROUND(E101*F101,2)","v":0}]
[null,"VII.4","SUMINISTRO Y COLOCACIÓN DE SILLETA DE PVC SANITARIO RD-35 DE 6\" DE DIAMETRO (150 MM), INCLUYE: MATERIALES, MANO DE OBRA, HERRAMIENTA Y EQUIPO.","PZA",4,null,null,0]
[null,"VII.5","SUMINISTRO Y COLOCACIÓN DE ABRAZADERA SIN FIN DE ACERO INOXIDABLE DE  8\" DE DIAMETRO (200 MM), INCLUYE: MATERIALES, MANO DE OBRA, HERRAMIENTA Y EQUIPO.","PZA",8,null,null,0]
[null,"VII.6","RELLENO COMPACTADO CON EQUIPO MECANICO MANUAL EN CAPAS DE 20 CM EN CEPA CON MATERIAL SELECCIONADO PRODUCTO DE LA EXCAVACION (CRIBADO POR LA MALLA DE 2 1/2\") LIBRE DE BOLEO MAYOR DE 3\" , COMPACTADO AL 90% PROCTOR. INCLUYE: CRIBADO DEL MATERIAL, ACARREOS DENTRO DE LA OBRA, INCORPORACION DE  HUMEDAD, MANO DE OBRA, HERRAMIENTA Y EQUIPO NECESARIO. ","M3",7.35,null,null,0]
[null,"VII.7","CARGA MECANICA Y ACARREO DE MATERIAL PRODUCTO DE LA EXCAVACION DE LAS DESCARGAS DOMICILIARIAS DE  ALCANTARILLADO SANITARIO PARA FORMACION DE TERRAPLENES EN VIALIDADES Y EN FORMACION DE PLATAFORMAS, INCLUYE: MANO DE OBRA, EQUIPO Y HERRAMIENTA.","M3",4.0999999999999996,null,null,0]
[null,"VII.8","CONSTRUCCION DE REGISTRO  DE 0.60 x 0.40 M EN BANQUETA PARA RECIBIR DESCARGA DOMICILIARIA A BASE DE FIRME DE CONCRETO DE 5 CM MUROS DE BLOCK 12 X 20 X 40 CM REPELLADO INTERIOR DE MORTERO CEMENTO-ARENA 1:3  Y TAPA DE CONCRETO.","PZA",10,null,null,0]
[null,"VII.9","FABRICACION DE MARCO Y CONTRAMARCO PARA REGISTRO SANITARIO CON ANGULO, INCLUYE: MATERIALES, MANO DE OBRA Y TODO LO NECESARIO PARA SU CORRECTA EJECUCION","PZA",10,null,null,0]
[null,"VII.10","FABRICACIO DE TAPA DE REGISTRO Y MEDIA CAÑA, INLCUYE: MATERIALES, MANO DE OBRA, EQUIPO Y HERRAMIENTA","PZA",10,null,null,0]
[null,null,null,null,null,null,"SUB TOTAL DESCARGAS DOMICILIARIAS :",{"$f":"SUM(H99:H108)","v":0}]
[null,"VIII.- MEDIA TENSION (MT)"]
[null,"VIII.1","CONSTRUCCION DE BANCO DE DUCTOS DE 3 VIAS, CON TUBO PAD DE ALTA DENSIDAD DE 3\" DE DIAMETRO; INCLUYE: TRAZO,  EXCAVACION, AFINE DE FONDO Y TALUDES DE CEPA, ENCOFRADO CON CONCRETO F´C=100 KG/CM2, CINTA DE PRECAUCION ENTERRADA SOBRE TODO LO LARGO DE LA TUBERIA, RELLENO COMPACTADO CON MATERIAL PRODUCTO DE EXCAVACION, SUMINISTRO DE TODOS LOS MATERIALES NECESARIOS, HERRAMIENTA, EQUIPO Y MANO DE OBRA.","ML",615.80999999999995,null,null,{"$f":"ROUND(E111*F111,2)","v":0}]
[null,"VIII.2","SUMINISTRO Y COLOCACION DE REGISTRO TIPO 4 Y BASE PARA TRANSFORMADOR TIPO PEDASTAL DE 15 KVA DE CAPACIDAD CON DIMENSIONES DE 1.50 x 1.50 x 1.50 DE CONCRETO ARMADO CON VARILLAD DE 3/8 A CADA 20 CM  EN AMBOS SENTIDOS CON ARO Y TAPA 83.5 DE Fo. Fo. Y LA BASE DE 1.50 x 1.50 x 0.10 MTS DE CONCRETO ARMADO A BASE DE VARILLA DE 3/8 A CADA 20 CM EN AMBOS SENTIDOS Y REFORZADA CON UNA DALA PERIMETRAL DE 0.25 x 0.15 ARMADA CON 4 VARILLAS DE 3/8 Y ESTRIBOS #2 A CADA 20 CM, INCLUYE: MANIOBRAS, MATERIALES, MANO DE OBRA, EQUIPO Y HERRAMIENTA.","PZA",4,null,null,0]
[null,"VIII.3","SUMINISTRO Y COLOCACION DE REGISTRO TIPO 3 CON DIMENSIONES DE 1.16 x 1.16 x 1.16 DE CONCRETO ARMADO CON VARILLAD DE 3/8 A CADA 20 CM  EN AMBOS SENTIDOS CON ARO Y TAPA 84 DE Fo. Fo. , INCLUYE: MATERIALES, MANO DE OBRA, EQUIPO Y HERRAMIENTA.","PZA",4,null,null,0]
[null,"VIII.4","CARGA MECANICA Y ACARREO DE MATERIAL PRODUCTO DE LA EXCAVACION FUERA DE LA OBRA DE LA RED DE MEDIA TENSION, INCLUYE: MANO DE OBRA, EQUIPO Y HERRAMIENTA.","M3",12,null,null,{"$f":"F114*E114","v":0}]
[null,null,null,null,null,null,"SUB TOTAL MEDIA TENSION (MT) :",{"$f":"SUM(H111:H114)","v":0}]
[null,"IX.- BAJA TENSION (BT)"]
[null,"IX.1","SUMINISTRO Y COLOCACION DE TUBO PAD DE ALTA DENSIDAD DE 50.8 MM (2\") DE DIAMETRO (1 LINEA), INCLUYE: TRAZO, EXCAVACION, AFINE DE FONDO, TALUDES, RELLENO CONMPACTADO, CINTA DE PRECAUCION, SUMINISTRO DE TODOS LOS MATERIALES, MANO DE OBRA, EQUIPO Y HERRAMIENTA.","ML",615.80999999999995,null,null,{"$f":"ROUND(E117*F117,2)","v":0}]
[null,"IX.2","SUMINISTRO Y COLOCACION DE TUBO PAD DE ALTA  DENSIDAD (2 LINEAS) DE 50.8 MM (2\") DE DIAMETRO, INCLUYE: TRAZO, EXCAVACION, AFINE DE FONDO, TALUDES, RELLENO CONMPACTADO, CINTA DE PRECAUCION, SUMINISTRO DE TODOS LOS MATERIALES, MANO DE OBRA, EQUIPO Y HERRAMIENTA.","ML",1231.6199999999999,null,null,0]
[null,"IX.3","FABRICACION DE REGISTRO EN SITIO TIPO I CON DIMENSIONES DE 0.80 x 0.50 x 0.60 DE CONCRETO ARMADO CON VARILLAD DE 5/16 A CADA 15 CM  EN AMBOS SENTIDOS CON TAPA DE CONCRETO, INCLUYE: LETRAS DE MOLDE EN TAPA CON LETRAS \"CFE\" DE 15 CM DE ALTURA, MATERIALES, MANO DE OBRA, EQUIPO Y HERRAMIENTA.","PZA",7,null,null,0]
[null,"IX.4","FABRICACION EN SITIO  DE MURETE DE MEDICION Y CONTROL PARA DOS VIVIENDAS DE 2.45 x 0.50 x 0.15 MTS, A BASE DE CONCRETO ARMADO, REPELLADO, TEXTURIZADO PALOMEADO Y PINTADO, INCLUYE;  HERRAMIENTA, MATERIALES, MANO DE OBRA Y EQUIPO.","PZA",7,null,null,0]
[null,"IX.5","SUMINISTRO Y COLOCACION DE REGISTRO DE 0.80 X 0.50 X 0.60 DE CONCRETO, INCLUYE: MANO DE OBRA, EQUIPO Y HERRAMIENTA.","PZA",7,null,null,0]
[null,"IX.6","CARGA MECANICA Y ACARREO DE MATERIAL PRODUCTO DE LA EXCAVACION FUERA DE LA OBRA DE LA RED DE MEDIA TENSION, INCLUYE: MANO DE OBRA, EQUIPO Y HERRAMIENTA.","M3",28,null,null,0]
[null,null,null,null,null,null,"SUB TOTAL BAJA TENSION (BT) :",{"$f":"SUM(H117:H122)","v":0}]
[null,"X.- TELMEX"]
[null,"X.1","EXCAVACION POR MEDIOS MANUALES DE ZANJAS EN MATERIAL TIPO \"II\"  DE 0.00 A 1.00 MTS. DE PROFUNDIDAD, INCLUYE: EQUIPO, HERRAMIENTA, MANO DE OBRA Y MATERIALES.","ML",677,null,null,{"$f":"ROUND(E125*F125,2)","v":0}]
[null,"X.2","SUMINISTRO Y COLOCACION DE CINTA DE PRECAUCION O PELIGRO EN TODA LA TUBERIA, INCLUYE MATERIAL, HERRAMIENTA Y MANO DE OBRA","ML",677,null,null,{"$f":"ROUND(E126*F126,2)","v":0}]
[null,"X.3","RELLENO EN CEPAS DE RED CON MATERIAL PRODUCTO DE LA EXCAVACION AL  95% PROCTOR, EN CAPAS DE 20 CM. INCLUYE: MATERIALES, MANO DE OBRA, HERRAMIENTA Y EQUIPO.","ML",677,null,null,{"$f":"ROUND(E127*F127,2)","v":0}]
[null,"X.4","COLOCACION DE MINIPOSTE  INCLUYE: MATERIALES, MANO DE OBRA EQUIPO Y HERRAMIENTA.","PZA",2,null,null,{"$f":"ROUND(E128*F128,2)","v":0}]
[null,"X.5","EXCAVACION PARA REGISTRO TELEFONICO, INCLUYE: MANO DE OBRA, EQUIPO Y HERRAMIENTA.","PZA",6,null,null,{"$f":"ROUND(E129*F129,2)","v":0}]
[null,"X.6","SUMINISTRO Y COLOCACION DE TUBERIA DE PVC  GRIS DE 2\", INCLUYE: MATERIALES, MANO DE OBRA, EQUIPO Y HERRAIENTA.","ML",3385,null,null,{"$f":"ROUND(E130*F130,2)","v":0}]
[null,"X.7","COLOCACION DE REGISTRO TIPO L2T CON, INCLUYE: OBRA CIVIL, MATERIALES, MANO DE OBRA, MANIOBRAS Y MAQUINARIA PARA EXTRAER AGUA DEL CANAL EN CASO DE SER NECESARIO,  EQUIPO Y HERRAMIENTA.","PZA",3,null,null,0]
[null,"X.8","COLOCACION DE REGISTRO TIPO L3T CON, INCLUYE: OBRA CIVIL, MATERIALES, MANO DE OBRA, MANIOBRAS Y MAQUINARIA PARA EXTRAER AGUA DEL CANAL EN CASO DE SER NECESARIO,  EQUIPO Y HERRAMIENTA.","PZA",4,null,null,0]
[null,"X.9","COLOCACION DE PEDESTAL GRANDE, INLUYE, MANO DE OBRA,MANIOBRAS Y MAQUINARIA PARA EXTRAER AGUA DEL CANAL EN CASO DE SER NECESARIO,  EQUIPO Y HERRAMIENTA.","PZA",3,null,null,0]
[null,"X.10","COLOCACION DE RADIALES DE MANGUERA POLIDUCTO PVC GRIS 3/4\" PARA CABLE, INLCUYE: RAFIA, MANO DE OBRA,MANIOBRAS Y MAQUINARIA PARA EXTRAER AGUA DEL CANAL EN CASO DE SER NECESARIO,  EQUIPO Y HERRAMIENTA","ML",100,null,null,0]
[null,"X.11","SUMINISTRO Y COLOCACION DE CONCRETO F´C=100KG/CM2 PARA ENCOFRADO DE TUBERIA. INCLUYE: MATERIALES, MANO DE OBRA, EQUIPO Y HERRAMIENTA.","ML",50,null,null,0]
[null,"X.12","SUMINISTRO, INSTALACIÓN Y DE INSTALACION DE TELEFONIA SUBTERRANEA SEGÚN PROYECTO DE TELMEX INCLUYE: TENDIDO RELLENO, CABLEADO, PRUEBAS DE FUNCIONAMIENTO, BAJADA DE RED, MRACOS Y TAPAS PARA REGISTROS L2T Y L3T,  RETIRO Y DESISTALACION DE INFRESCTURA AEREA,  MANO DE OBRA EQUIPO MATERIAL HERRAMIENTA Y TODO LO NECESARIO PARA SU CORRECTA EJECUCION.","LOTE",1,null,null,0]
[null,null,null,null,null,null,"SUB TOTAL TELMEX :",{"$f":"SUM(H125:H136)","v":0}]
[null,"XI.- MEGACABLE"]
[null,"XI.1","SUMINISTRO, INSTALACIÓN Y DE INSTALACION DE MEGACABLE SUBTERRANEO SEGÚN PROYECTO DE MEGACABLE INCLUYE: REGISTROS, TUBERIA DE DIAMETROS VARIOS, EXCAVACIONES TENDIDO RELLENO MANO DE OBRA EQUIPO MATERIAL HERRAMIENTA Y TODO LO NECESARIO PARA SU CORRECTA EJECUCION.","LOTE",1,null,null,{"$f":"ROUND(E139*F139,2)","v":0}]
[null,null,null,null,null,null,"SUB TOTAL MEGACABLE :",{"$f":"SUM(H139:H139)","v":0}]
[null,"XII.- ALUMBRADO PUBLICO"]
[null,"XII.1","SUMINISTRO E INSTALACION DE TUBERÍA CONDUIT DE PVC PARED GRUESA, DE 2\" DE DIAMETRO. PARA PREPARACION DE INSTALACION ELECTRICA EN ALUMBRADO PUBLICO. INCLUYE: INCLUYE: TRAZO, EXCAVACIÓN, RELLENO COMPACTADO AL 85 % MINIMO, MATERIAL DIVERSO DE INSTALACION, CONEXION AL REGISTRO ELECTRICO, ELEMENTOS DE PROTECCION EN LOS EXTREMOS PARA EVITAR LA INTRODUCCION DE CUALQUIER MATERIAL, MANO DE OBRA, HERRAMIENTA Y EQUIPO.","ML",677,null,null,{"$f":"ROUND(E142*F142,2)","v":0}]
[null,"XII.2","SUMINISTRO Y COLOCACIÓN DE CANALIZACIÓN ELÉCTRICA A BASE DE TUBERÍA  DE 1 1/2\" (41 mm) DE Ø CONDUIT PVC PARED GRUESA CED.40, INCLUYE: TRAZO, EXCAVACION, ACARREOS DENTRO DE LA OBRA, COPLE,  GUÍA DE ALAMBRE GALVANIZADO CALIBRE 14, FIJACIÓN, LIMPIEZA Y RETIRO DE SOBRANTES FUERA DE OBRA, EQUIPO DE SEGURIDAD, INSTALACIONES ESPECÍFICAS, DEPRECIACIÓN Y DEMÁS CARGOS DERIVADOS DEL USO DE EQUIPO Y HERRAMIENTA, EN CUALQUIER NIVEL.","ML",677,null,null,{"$f":"ROUND(E143*F143,2)","v":0}]
[null,"XII.3","CIMENTACIÓN TRAPEZOIDAL DE CONCRETO DE 40x40 EN CORONA Y 80x80 EN BASE, CON ALTURA DE 120 Cm., F´c=200 Kg/Cm2 ARMADA CON VARILLA N° 3 Y 4 SEGÚN (VER DETALLE EN PLANOS),  ANCLAJE ADECUADO, TUBO CONDUIT PARED GRUESA DE 1\" DE REGISTRO A PARTE SUPERIOR DE PEDESTAL ( VER DETALLE EN PLANO DE INSTALACIONES ).","PZA",19,null,null,{"$f":"ROUND(E144*F144,2)","v":0}]
[null,"XII.4","SUMINISTRO Y COLOCACIÓN DE LUMINARIO DE LED DE 100 WATTS MODELO LUMA 2 MARCA FORLIGHTING PEMIUM, TERMINADA CON PINTURA ELECTROSTATICA, PARA MAYOR EFICIENCIA Y CONTROL DE LUZ,  O SIMILAR EN CALIDAD Y PRECIO INCLUYE: BRAZO DE 2.40 METROS DE LARGO, CABLE THHW  CALIBRE No 10 AWG 90°C (TRES HILOS), ELEMENTOS DE FIJACIÓN Y CONEXIÓN, CONSIDERAR CARGO DIRECTO POR EL COSTO DE MANO DE OBRA Y MATERIALES REQUERIDOS, FLETE A OBRA, ACARREO, COPLE, COLOCACIÓN, BRAZO DE 2.40 METROS DE LARGO, GUÍA DE ALAMBRE GALVANIZADO CALIBRE 14, FIJACIÓN, LIMPIEZA Y RETIRO DE SOBRANTES FUERA DE OBRA, EQUIPO DE SEGURIDAD, INSTALACIONES ESPECÍFICAS, DEPRECIACIÓN Y DEMÁS CARGOS DERIVADOS DEL USO DE EQUIPO Y HERRAMIENTA, EN CUALQUIER NIVEL.","PZA",19,null,null,{"$f":"ROUND(E145*F145,2)","v":0}]
[null,"XII.5","SUMINISTRO Y COLOCACIÓN DE POSTE DE Fe. (CAL. 11) OCTAGONAL CÓNICO GALVANIZADO DE 9 METROS DE ALTURA, SE INCLUYE CABLE INTERIOR THHW CALIBRE No 10 AWG 90°C (TRES HILOS) POR LAMPARA, CIMENTACIÓN TRAPEZOIDAL DE CONCRETO DE 40x40 EN CORONA Y 80x80 EN BASE, CON ALTURA DE 120 Cm., F´c=200 Kg/Cm2 ARMADA CON VARILLA N° 3 Y 4 SEGÚN SE INDICA EN PLANOS,  ANCLAJE ADECUADO, TUBO CONDUIT PARED GRUESA DE 1\" DE REGISTRO A PARTE SUPERIOR DE PEDESTAL ( VER DETALLE EN PLANO DE INSTALACIONES ), INCLUYE CARGO DIRECTO POR EL COSTO DE MANO DE OBRA Y MATERIALES REQUERIDOS, FLETE A OBRA, ACARREO, COPLE, TRAZO, CORTE, CIMBRA,  COLOCACIÓN, GUÍA DE ALAMBRE GALVANIZADO CALIBRE 14, FIJACIÓN, LIMPIEZA Y RETIRO DE SOBRANTES FUERA DE OBRA, EQUIPO DE SEGURIDAD, INSTALACIONES ESPECÍFICAS, DEPRECIACIÓN Y DEMÁS CARGOS DERIVADOS DEL USO DE EQUIPO Y HERRAMIENTA, EN CUALQUIER NIVEL.\nNOTA: LA BASE DEL POSTE DEBERA SER PRECOLADA FUERA DEL SITIO DE LA OBRA.","PZA",19,null,null,0]
[null,"XII.6","SUMINISTRO Y COLOCACIÓN DE REGISTRO ELÉCTRICO DE 40x40x60 Cm, PREFABRICADO A BASE DE CONCRETO F'c = 150 Kg/Cm2. T.M.A. 3/4\". REV. DE 8 A 10 CMS. CON UN ESPESOR DE 10 CMS. PISO DE GRAVA, APLANADO INTERIOR PULIDO FINO, MARCO Y CONTRAMARCO METALICOS GALVANIZADOS ÁNGULO 1 1/2\"x 1/4\" Y TAPA DE CONCRETO ARMADO CON VARILLA CORRUGADA ALTA RESISTENCIA DEL No.2 @ 10 CMS. AMBOS SENTIDOS SOLDADAS, F'c = 250 Kg/Cm2. T.M.A. 3/4\". REVENIMIENTO DE 8 A 10 CMS. INCLUYE: EXCAVACION EN TERRENO INVESTIGADO EN SITIO, RELLENO COMPACTADO AL 90% MINIMO, CON MATERIAL SELECCIONADO PRODUCTO DE LA EXCAVACIÓN LIBRE DE BOLEO MAYOR DE 3\", NIVELADO A N.P.T., ELABORACION, COLADO Y VIBRADO DE CONCRETO, CIMBRA Y DESCIMBRADO, LIMPIEZA Y RETIRO DE SOBRANTES FUERA DE OBRA HASTA EL LUGAR INDICADO, ACARREOS, NIVELADO Y PLOMEADO, MANIOBRAS, MATERIALES, MANO DE OBRA, HERRAMIENTA Y EQUIPO NECESARIO.POR UNIDAD DE OBRA TERMINADA. NOTA: EL REGISTRO DEBERA SER PRECOLADO FUERA DEL SITIO DE LA OBRA (CONSIDERAR EL SOLDAR, LA TAPA DEL REGISTRO AL CONTRAMARCO DEL MISMO Y EL SELLADO DEL INTERIOR DE LOS DUCTOS DE LA CANALIZACION CON SILICON DE POLIURETANO TIPO A1, MINIMO 15 CMS, CUBRIENDO EL ESPESOR DE LA PARED DEL REGISTRO)\nNOTA: EL REGISTRO DEBERA SER PRECOLADO FUERA DEL SITIO DE LA OBRA.","PZA",19,null,null,0]
[null,"XII.7","SUMINISTRO Y COLOCACIÓN DE CABLE DE ALUMINIO TRIPLEX XLP No. (2-2+1-2 ) (SUBTERRANEO) EN CANALIZACIÓN ELÉCTRICA, INCLUYE CARGO DIRECTO POR EL COSTO DE MANO DE OBRA Y MATERIALES REQUERIDOS, FLETE A OBRA, ACARREO, CORTE, COLOCACIÓN, CINTA AISLANTE, CINTA VULCANIZABLE, CONECTORES PONCHABLES BIMETALICOS (PUROS) EN CALIBRE ADECUADO, FIJACIÓN, LIMPIEZA Y RETIRO DE SOBRANTES FUERA DE OBRA, EQUIPO DE SEGURIDAD, INSTALACIONES ESPECÍFICAS, DEPRECIACIÓN Y DEMÁS CARGOS DERIVADOS DEL USO DE EQUIPO Y HERRAMIENTA, EN CUALQUIER NIVEL.","ML",700,null,null,0]
[null,"XII.8","SUMINISTRO Y COLOCACIÓN DE CONTACTOR DE COMBINACION DE ALUMBRADO MONOFÁSICO, 220 VOLTS., 20 AMPERES, BOBINA DE CONTROL 127 VOLTS., MARCA SIEMENS INCLUYE: GABINETE MULTIPROPÓSITO PARA SOBREPONER NEMA 3R, FOTOCELDA CON CABLEADO DE CONTROL Y CONEXIÓN A CIRCUITO DE ALUMBRADO, INCLUYE CARGO DIRECTO POR EL COSTO DE MANO DE OBRA Y MATERIALES REQUERIDOS, FLETE A OBRA, ACARREOS, COPLE, TRAZO, CORTE, COLOCACIÓN, GUÍA DE ALAMBRE GALVANIZADO CALIBRE 14, FIJACIÓN, LIMPIEZA Y RETIRO DE SOBRANTES FUERA DE OBRA, EQUIPO DE SEGURIDAD, INSTALACIONES ESPECÍFICAS, DEPRECIACIÓN Y DEMÁS CARGOS DERIVADOS DEL USO DE EQUIPO Y HERRAMIENTA, EN CUALQUIER NIVEL.","PZA",2,null,null,0]
[null,"XII.9","SUMINISTRO Y COLOCACIÓN DE CENTRO DE CARGA SQUARE D NEMA 3R MONOFÁSICO 120/240 VOLTS., 8 ESPACIOS Y BARRAS DE 100 AMPERES, CAJA 3 R Y ZAPATAS PRINCIPALES, CATALOGO QO816L100S, INCLUYE CARGO DIRECTO POR EL COSTO DE MANO DE OBRA Y MATERIALES REQUERIDOS, FLETE A OBRA, ACARREO, COPLE, TRAZO, CORTE, COLOCACIÓN, GUÍA DE ALAMBRE GALVANIZADO CALIBRE 14, FIJACIÓN, LIMPIEZA Y RETIRO DE SOBRANTES FUERA DE OBRA, EQUIPO DE SEGURIDAD, INSTALACIONES ESPECÍFICAS, DEPRECIACIÓN Y DEMÁS CARGOS DERIVADOS DEL USO DE EQUIPO Y HERRAMIENTA, EN CUALQUIER NIVEL.","PZA",1,null,null,0]
[null,"XII.10","SUMINISTRO Y COLOCACIÓN DE INTERRUPTOR TERMO MAGNÉTICO DE DOS POLOS DE 15 A 50 AMPERES, MARCA SQUARE D, INCLUYE: SUMINSTRO DE MATERIALES NECESARIOS, HERRAMIENTA, EQUIPO Y MANO DE OBRA.","PZA",2,null,null,0]
[null,"XII.11","CONSTRUCCIÓN DE MURETE MT - 3 TIPO C, UN FRENTE, DE UN METRO INTERIOR POR 2 METROS DE ALTO Y 40 CM. DE PROFUNDIDAD, A BASE DE BLOCK DE 15X20X40 CM. ASENTADO CON MORTERO CEMENTO - ARENA 1:4, APLANADO FINO, PISO DE GRAVA, PINTADO A DOS MANOS EN COLOR INDICADO POR SUPERVISIÓN, INCLUYE: PROTECCIÓN METÁLICA A BASE DE ÁNGULO Y LÁMINA ESTRIADA. SECCIÓN SEGÚN DIMENSIONES DE MURETE, INCLUYE PINTURA ANTICORROSIVA Y ESMALTE, BISAGRAS, CANDADO, TODOS LOS MATERIALES NECESARIOS, HERRAMIENTA, EQUIPO Y MANO DE OBRA.","PZA",1,null,null,0]
[null,"XII.12","SUMINISTRO Y COLOCACIÓN DE BASE DE MEDICIÓN MS - 03 MONOFÁSICA 220/127 VOLTS., COMPLETA, CABLEADA CON TRES CABLES CALIBRE 6 AWG PARA FASES Y NEUTRO, INTERRUPTOR PRINCIPAL 2X20, TUBO GALVANIZADO Y MUFA DE 1 1/4\", TUBO DE RETENIDA PG 2\", CARRETE R1 CON AISLADOR, VARILLA DE TIERRA, PUERTA DE LAMINA DE O.8 X O.6 MT DE DOS HOJAS PARA CANDADO, CAL 16 CON MARCO DE ANGULO DE 1/ 1/2\" X 1/8\" CON RECUBRIMIENTO PRIMARIO Y ACABADO, MANO DE OBRA, HERRAMIENTA, EQUIPO Y TODO LO NECESARIO PARA SU CORRECTA CONSTRUCCIÓN. MATERIAL DIVERSO DE INSTALACIÓN Y FIJACIÓN.","PZA",1,null,null,0]
[null,"XII.13","PAGO DE UNIDAD DE VERIFICACIÓN CERTIFICADO POR LA SECRETARIA DE ENERGÍA, AVALANDO LA INSTALACIÓN ELÉCTRICA DEL SISTEMA DE ALUMBRADO.","PAGO",1,null,null,0]
[null,"XII.14","TRAMITES  ANTE LA COMISIÓN FEDERAL DE ELECTRICIDAD PAGO DEL DEPOSITO EN GARANTIA DEL CONTRATO A NOMBRE DEL H. AYUNTAMIENTO.","TRAMITE",1,null,null,0]
[null,null,null,null,null,null,"SUB TOT  ALALUMBRADO PUBLICO :",{"$f":"SUM(H142:H155)","v":0}]
[null,"XIII.- TERRACERIAS"]
[null,"XIII.1","TRAZO Y NIVELACION DE TERRACERIAS, AL AMPARO DE ESTE CONCEPTO EL CONTRATISTA DE ACUERDO A LOS PLANOS DE PROYECTO QUE LE SEAN SUMINISTRADOS, HARA EL TRAZO Y NIVELACION CON EQUIPO DE TOPOGRAFIA DE LOS EJES, LIMITES Y DETALLES CONSTRUCTIVOS DE LOS TRABAJOS. DEBERA COLOCAR REFERENCIAS FIJAS, FUERA DE LAS AREAS DE LOS TRABAJOS PARA ASEGURAR LOS ALINEAMIENTOS Y NIVELES. INCLUYE: LOS MATERIALES, MANO DE OBRA, HERRAMIENTA Y EQUIPO NECESARIO.","M2",5270.32,null,null,{"$f":"ROUND(E158*F158,2)","v":0}]
[null,"XIII.2","EXCAVACION Y/O CORTE POR MEDIOS MECANICOS EN TERRENO CON CUALQUIER CLASIFICACION PARA LA ELABORACION DE CAJA, CON ESPESOR VARIABLE PARA DAR EL NIVEL DE SUBRASANTE. INCLUYE: ESCARIFICADO,  PAPEO MANUAL, ACAMELLONADO DEL MATERIAL PARA SER RETIRADO, Y EL EQUIPO NECESARIO.","M3",2486.25,null,null,0]
[null,"XIII.3","CARGA Y ACARREO POR MEDIOS MECANICOS DEL MATERIAL PRODUCTO DEL CORTE NO UTILIZABLE PARA EL PRIMER KILOMETRO DE DISTANCIA. INCLUYE EL EQUIPO NECESARIO.","M3",3232.13,null,null,0]
[null,"XIII.4","ACARREO  EN CAMION DEL MATERIAL PRODUCTO DEL CORTE PARA KILOMETROS SUBSECUENTES. (6 KM). INCLUYE: EL EQUIPO NECESARIO.","M3-KM",3232.13,null,null,0]
[null,"XIII.5","AFINE DE TERRACERIAS PARA DAR NIVELES DE PROYECTO DEFINITIVIOS. INCLUYE: ESCARIFICADO, APERTURA DE CAJA, PAPEO DEL MATERIAL MAYOR A 3\" MANUAL, FORMACION DE LA CAPA SUBRASANTE, INCORPORACION DE HUMEDAD OPTIMA, TENDIDO, AFINE Y COMPACTACION AL 95% DE SU  PVSM DE LA PRUEBA PROCTOR MODIFICADA  (ASSHTO), CON MATERIAL SELECCIONADO PRODUCTO DE CORTES, CARGA Y ACARREOS. CON UN ESPESOR DE 30 CM, EN TERRENO CON CUALQUIER CLASIFICACION. INCLUYE. LA MANO DE OBRA, Y EQUIPO NECESARIO.","M2",5270.32,null,null,0]
[null,"XIII.6","FORMACION DE TERRAPLEN CON MATERIAL DE BANCO, PARA DAR NIVEL DE SUBRAANTE, INCLUYE ESCARIFICADO,  PAPEO MANUAL, CONFORMACION DE LA SUBRASANTE, INCORPORACION DE HUMEDAD OPTIMA, TENDIDO, AFINE Y COMPACTACION AL 95% DE SU PVSM DE LA PRUEBA PROCTOR MODIFICADA (ASSHTO).","M3",21.39,null,null,0]
[null,"XIII.7","FORMACION DE CAPA ROMPECAPILARIDAD CON MATERIAL DE BANCO COMPRENDIDO CON GRAVAS NO MAYORES DE 3\", PARA DAR NIVELES DE PROYECTO DEFINITIVO, INCLUYE ESCARIFICADO, APERTURA DE CAJA, PAPEO MANUAL, CONFORMACION DE LA SUBRASANTE, INCORPORACION DE HUMEDAD OPTIMA, TENDIDO, AFINE Y COMPACTACION AL 95% DE SU PVSM DE LA PRUEBA PROCTOR MODIFICADA (ASSHTO).","M3",536.04,null,null,0]
[null,"XIII.8","FORMACION DE PEDRAPLEN CON MATERIAL DE BANCO CON PATERIAL PETREO MAYOR A 3\" PERO MENOR A 11\", PARA DAR NIVELES DE PROYECTO DEFINITIVO, INCLUYE ESCARIFICADO, APERTURA DE CAJA, PAPEO MANUAL, CONFORMACION DE LA SUBRASANTE, INCORPORACION DE HUMEDAD OPTIMA, TENDIDO, AFINE Y COMPACTACION AL 95% DE SU PVSM DE LA PRUEBA PROCTOR MODIFICADA (ASSHTO).","M3",803.07,null,null,{"$f":"ROUND(E165*F165,2)","v":0}]
[null,null,null,null,null,null,"SUB TOTAL TERRACERIAS :",{"$f":"SUM(H158:H165)","v":0}]
[null,"XIV.- OBRAS DE PROTECCION"]
[null,"XIV.1","EXCAVACION  EN ZANJAS POR MEDIOS MECANICOS EN TERRENO CON CUALQUIER CLASIFICACION Y PROFUNDIDAD EN PRESENCIA DE AGUA O EN SECO, PARA DESPLANTE DE GUARNICION. INCLUYE: TRAZO, NIVELACION, AFINE DE FONDO Y TALUDES, RETIRO DE MATERIAL HASTA 4 MTS. DE DISTANCIA HORIZONTAL, MATERIALES, MANO DE OBRA, HERRAMIENTA Y EQUIPO NECESARIO.","M3",17.12,null,null,{"$f":"ROUND(E168*F168,2)","v":0}]
[null,"XIV.2","PLANTILLA DE CONCRETO HIDRAULICO F´C= 100 KG /CM2. T.M.A. 3/4\". DE UN ACHO DE 100 CMS  Y UN ESPESOR DE 8 CMS. INCLUYE: TRAZO, NIVELACION, RELLENO COMPACTADO AL 95% DE SU PVSM. CON MATERIAL SELECCIONADO PRODUCTO DE LA EXCAVACION, CIMBRADO Y DESCIMBRADO, ELABORACION, COLADO, VIBRADO Y CURADO DE CONCRETO, MATERIALES, MANO DE OBRA, HERRAMIENTA Y EQUIPO NECESARIO.","ML",42.8,null,null,{"$f":"ROUND(E169*F169,2)","v":0}]
[null,"XIV.3","CONSTRUCCION DE DENTELLON DE MAMPOSTERIA DE 3era. CON PIEDRA OBTENIDA DE BANCO, JUNTEADA CON MORTERO DE CEMENTO-ARENA EN PROPORCION DE 1:4. ACABADO COMUN. DE SECCION TRAPEZOIDAL, CON BASE MAYOR DE 80 CMS. EN BASE MENOR 30 CMS. Y UNA ALTURA DE 1.00 MTS. INCLUYE: TRAZO Y NIVELACION, RELLENO COMPACTADO EN CAPAS DE 20 CMS. AL 95% DE SU PVSM. CON MATERIAL SELECCIONADO PRODUCTO DE LA EXCAVACION, ACARREOS DE LOS MATERIALES NECESARIOS, DESPERDICIOS, RECORTES, LOS MATERIALES, MANO DE OBRA Y HERRAMIENTA. P.U.O.T.","M3",17.12,null,null,{"$f":"ROUND(E170*F170,2)","v":0}]
[null,"XIV.4","PLANTILLA COMPACTADA CON EQUIPO MECANICO DE 10 CMS. DE ESPESOR EN ZANJAS, CON MATERIAL SELECCIONADO PRODUCTO DE LA EXCAVACION (CRIBADO POR LA MALLA DE 2 1/2\") LIBRE DE BOLEO MAYOR DE 3\". INCLUYE: CRIBADO DEL MATERIAL, ACARREOS DENTRO DE LA OBRA, INCORPORACION DE HUMEDAD, COMPACTACION DEL 85% PROCTOR, MANO DE OBRA, , HERRAMIENTA Y EQUIPO NECESARIO. ","M3",1.28,null,null,{"$f":"ROUND(E171*F171,2)","v":0}]
[null,"XIV.5","SUMINISTRO Y COLOCACION DE TUBERIA DE 42\" DE DIAMETRO (1066.80 MM)PARA DESAGUE PLUVIAL EN CRUCE SUBTERRANEO, INCLUYE; ACARREO AL SITIO DE LA OBRA, MANEOBRA DE DESCARGA Y MANEOBRA DE COLOCACION,  ACOSTILLADO DE TUBERIA CON MATERIAL DE PEDRAPLEN  (AREAN, GRAVAS Y ROCAS NO MAYORES A 3\") ,   MATERIALES, MANO DE OBRA, HERRAMIENTA Y EQUIPO.","ML",36,null,null,{"$f":"ROUND(E172*F172,2)","v":0}]
[null,"XIV.6","CONSTRUCCION DE DENTELLON DE CONCRETO PARA ENCOFRADO DE TUBOS DE 5 .60 X 2.10 X 0.40 MTS ACABADO COMUN. REFORSADO CON ACERO DEL #3 Y EST. 2. INCLUYE: TRAZO, EXCAVACION , NIVELACION ,  AFINE, RELLENO COMPACTADO EN CAPAS DE 20 CMS. AL 95% DE SU PVSM. CON MATERIAL SELECCIONADO PRODUCTO DE LA EXCAVACION, ACARREOS DE LOS MATERIALES NECESARIOS, DESPERDICIOS, RECORTES, LOS MATERIALES, MANO DE OBRA Y HERRAMIENTA. P.U.O.T. (VER DETALLE EN PLANO)","PZA",3,null,null,{"$f":"E173*F173","v":0}]
[null,null,null,null,null,null,"SUB TOTAL OBRAS DE PROTECCION :",{"$f":"SUM(H168:H173)","v":0}]
[null,"XV.- PAVIMENTACION"]
[null,"XV.1","TRAZO Y NIVELACION TOPOGRAFICA DEL TERRENO PARA PAVIMENTACION. AL AMPARO DE ESTE CONCEPTO EL CONTRATISTA REALIZARA EL LEVANTAMIENTO TOPOGRAFICO DE LA SUPERFICIE EXISTENTE PREVIO AL INICIO DE LOS TRABAJOS, EL TRAZO Y NIVELACION CON EQUIPO DE TOPOGRAFIA DE LOS EJES, LIMITES, REFERENCIAS, MOJONERAS, BANCOS DE NIVEL Y DETALLES CONSTRUCTIVOS DE LOS TRABAJOS. (RESPETANDO EL NIVEL DE LA RASANTE EXISTENTE DURANTE TODAS LAS ETAPAS DEL PROCESO CONSTRUCTIVO), DEBERA COLOCAR REFERENCIAS FIJAS, FUERA DE LAS AREAS DE LOS TRABAJOS PARA ASEGURAR LOS ALINEAMIENTOS Y NIVELES. INCLUYE: LOS MATERIALES, HILO PLÁSTICO, MADERA, CALHIDRA, CONCRETO PARA MOJONERAS, MANO DE OBRA, HERRAMIENTA, EQUIPO NECESARIO Y VERIFICACIÓN EN TODO EL PROCESO DE LA OBRA.","M2",5270.31,null,null,{"$f":"ROUND(E176*F176,2)","v":0}]
[null,"XV.2","CONSTRUCCION  DE  BASE  HIDRAULICA  CON  MATERIAL PETREO A TAMAÑO MAXIMO DE 1 1/2\", PARCIALMENTE TRITURADO PROVENIENTE DE BANCO. INCLUYE: ACARREOS, INCORPORACION DE HUMEDAD, HOMOGENIZACION, TENDIDO, AFINE Y COMPACTACION AL 100% DE SU PVSM, ESPESOR DE 20 CM. COMPACTOS, LIMPIEZA PREVIA DEL AREA, MANO DE OBRA, MATERIALES, HERRAMIENTA, EQUIPO NECESARIO.","M2",5270.32,null,null,0]
[null,"XV.3","RIEGO DE IMPREGNACION CON ASFALTO FM-1 Y/O FR-3 REBAJADO AL 8% EN VOLUMEN CON DIESEL, EN PROPORCIÓN DE 1.5 LTS/M² (NO SE ACEPTARA EL USO DE EMULSIONES). INCLUYE: BARRIDO Y LIMPIEZA PREVIA DE LA SUPERFICIE (RETIRO FUERA DE LA OBRA DE LOS MATERIALES PRODUCTO DE LA MISMA), CARGA, CALENTADO, FLETE, ACARREOS Y APLICACIÓN DEL ASFALTO, EN CASO DE SER NECESARIO SE REALIZARA UN ARENEO EN LAS ZONAS DONDE NO PENETRE LA IMPREGNACIÓN, EN UN TIEMPO NO MENOR DE 24 HRS., DESPUÉS DEL RIEGO, LOS MATERIALES, MANO DE OBRA, HERRAMIENTA, EQUIPO NECESARIO. (INCLUYE EL COSTO DEL ASFALTO). P.U.O.T.","M2",5270.31,null,null,0]
[null,"XV.4","SUMINISTRO Y COLOCACION DE CONCRETO HIDRAULICO PREMEZCLADO MR42 KG/CM2  DE FRAGUADO A 28 DÍAS, AUTOCURABLE HIDRATIUM O SIMILAR, T.M.A. DE 1 1/2\". REV. DE 8 (± 2.0 CM.), MUESTREO EN OBRA, CEMENTO TIPO CPC40. SEGÚN NORMA NMX-C-414, AGREGADO GRUESO TRITURADO Y ARENA DE RIO. ELABORADO Y DOSIFICADO POR PESO EN PLANTA, EXTENDIDO EN LOSAS PARA PAVIMENTACIÓN CON ESPESOR DE 20 CM, TENDIDO Y NIVELADO CON PAVIMENTADORA DE CONCRETO (QUE EN GENERAL CUMPLA CON LO ESTABLECIDO EN LA CLAUSULA E EQUIPO, DE LA NORMA N.CTR.CAR.1.04.009/06, LIBRO CTR CONSTRUCCION, TEMA CAR CARRETERAS, PARTE 1 ACTIVIDADES DE OBRA, TITULO 04 PAVIMENTOS, CAPITULO 009 CARPETAS DE CONCRETO HIDRAULICO, DE LA NORMATIVA PARA LA INFRAESTRUCTURA DEL TRANSPORTE DE LA SECRETARÍA DE COMUNICACIONES Y TRANSPORTES), RODILLOS VIBRATORIOS, SEGUN SEA EL CASO, Y VIBRADO, AVIONADO CON CHECK ROD Y BULL FLOAT PARA UNA CORRECTA PLANICIDAD ACABADO CON PEINE METALICO DE CERDAS METALICAS ESPACIADOS @ 3/4\" PARA DAR TEXTURA EN ACABADO RAYADO TRANSVERSAL, COLADO POR FRANJAS CON UNA RELACIÓN LARGO ANCHO NO MAYOR DE 1.25; PLASTICO CAL. 600 MICRAS DESPUES DEL ACABADO, PARA REFORZAR CURADO CORRECTO DE LAS LOSAS. INCLUYE TRAZO, NIVELACIÓN, SEÑALAMIENTO, BARRIDO Y PREPARACIÓN DE LA SUPERFICIE, CIMBRADO Y DESCIMBRADO, VIBRADO, ELABORACIÓN, MEZCLADO Y ACARREO DEL CONCRETO HASTA EL LUGAR DE LA OBRA CON UN MÍNIMO DE CAMIONES REVOLVEDORES, PARA MANTENER UNA FRECUENCIA MINIMA DE 15 MINUTOS ENTRE UNIDADES DE ACUERDO AL CICLO REQUERIDO (PARA EVITAR LA FORMACIÓN DE JUNTAS FRÍAS DEL CONCRETO), PASA JUNTAS DE VARILLA LISA DE 3/4\" GRADO 60, DE 46 CM DE LARGO @ 30 CM, EN FORMA TRANSVERSAL Y COLOCADAS A CADA 3.50 M, (CON UN  EXTREMO ENGRASADO, FUNDA O PINTURA ANTIADHERENTE); BARRA DE AMARRE EN JUNTA LONG. CON VARILLA CORRUGADA DEL #4 F´Y=4200 KG/CM2 DE 79 CM DE LARGO @ 76 CM, DE ESPACIAMIENTO; CON CANASTILLA METÁLICA, AHOGADAS EN EL CONCRETO EN EL ESPESOR MEDIO; CORTE DE JUNTAS TRANSVERSALES Y LONGITUDINALES CON CORTADORA DE DISCO DE DIAMANTE A UNA PROFUNDIDAD DE 1/3 DEL PERALTE DE LA LOSA, MODULACIÓN DE TABLEROS SEGUN PROYECTO, PARA PREVENIR AGRIETAMIENTOS POR TEMPERATURA,  LIMPIEZA CON AIRE A PRESIÓN, Y  RELLENO EN JUNTA CONSTRUCTIVA CON CINTILLA DE POLIETILENO DE 3/8\" (BACKER ROD) , Y SELLADOR AUTONIVELANTE A BASE DE  POLIURETANO-ASFALTO TIPO SONOMERIC 1 Ó SIMILAR. INCLUYE: MATERIALES, MANO DE OBRA, HERRAMIENTA Y EQUIPO NECESARIO, CAPACIDAD INSTALADA PARA PRODUCIR Y SUMINISTRAR CONCRETO PREMEZCLADO CONFORME A PROGRAMA DE OBRA. (COLADOS NOCTURNOS).\nNOTA: EL LICITANTE DEBERA DE CONSIDERAR LAS PRUEBAS DE LABORATORIO RESPECTIVAS, EFECTUADAS POR UN LABORATORIO EXTERNO AL MISMO Y PRESENTARSE AL MOMENTO DE REALIZAR EL TRAMITE PARA EL PAGO DE ESTIMACIONES), INCLUYE: LIMPIEZA GENERAL (FINA Y GRUESA). VER ESPECIFICACIONES PARTICULARES Y APEGARSE A LAS NORMAS DE LA SCT. VIGENTES.","M3",777.05,null,null,0]
[null,"XV.5","SUMINISTRO Y COLOCACIÓN DE JUNTA DE DILATACIÓN ENTRE EL CONCRETO VIEJO Y EL CONCRETO NUEVO, PARA EVITAR LAS FALLAS POR DILATACIÓN Y CONTRACCIÓN A BASE DE CARTÓN ASFALTADO DE 1/2\" DE ESPESOR Y 15 CM DE ALTURA EN EL PERÍMETRO TOTAL, INCLUYE: LA FIJACIÓN CON CLAVO DE ACERO, CORTE DEL CARTÓN, DESPERDICIOS, ALINEACIÓN Y CUIDADO DURANTE EL COLADO, MATERIALES, MANO DE OBRA Y HERRAMIENTA.","ML",10,null,null,0]
[null,"XV.6","CONSTRUCCION DE DENTELLON DE CONCRETO F'C=150 KG/CM2.T.M.A. 3/4\". DE 15x50 CM DE SECCION. EN REMATE DE PAVIMENTO. INCLUYE: TRAZO, NIVELACION, EXCAVACION, RELLENO COMPACTADO, CIMBRADO Y DESCIMBRADO, COLADO, VIBRADO Y CURADO DE CONCRETO, MATERIALES, MANO DE OBRA Y HERRAMIENTA.","ML",317.89,null,null,0]
[null,null,null,null,null,null,"SUB TOTAL PAVIMENTACION :",{"$f":"SUM(H176:H181)","v":0}]
[null,"XVI.- SEÑALAMIENTO VERTICAL Y HORIZONTAL"]
[null,"XVI.1","SUMINISTRO Y COLOCACION LETRERO INFORMATIVO DE LA OBRA\" DE 10X15 CON LA LEYENDA Y LOGOTIPOS QUE OPORTUNAMENTE SE LE PROPORCIONE. CADA LETRERO SE FORMARÁ CON UN BASTIDOR METÁLICO CON PERFILES COMERCIALES ADECUADOS Y RESISTENTES A LA ACCIÓN DEL VIENTO. SOPORTADOS CON COLUMNAS DE ACERO ESTRUCTURAL A-36 GALVANIZADAS DE TIPO IPR DE 4”X4” X 22.3 KG/M Y ANCLADAS CON CUATRO (4) ANCLAS DE ACERO COMERCIAL DE UNA (1) PULGADA DE DIÁMETRO EN CADA COLUMNA, AHOGADAS EN MUERTOS DE CONCRETO F´C=200 KG/CM2. TMA ¾, REV. NORMAL. SOBRE EL BASTIDOR SE COLOCARÁ UNA LÁMINA DEL NÚMERO DIECIOCHO (18) DOBLÁNDOLA HACIA ATRÁS Y ATORNILLÁNDOLA EN TODO EL PERÍMETRO. PARA EL FONDO DEL LETRERO, LOGOTIPOS Y LA LEYENDA ALUSIVA, ASÍ COMO EN LA ESTRUCTURA METÁLICA SE USARÁ PRIMER ANTICORROSIVO, PINTURA DE ESMALTE DE COLOR PREVIAMENTE AUTORIZADO. SE LE DARÁ UN MANTENIMIENTO ADECUADO APLICANDO UN REPINTADO CUANDO SE LE INDIQUE.","PZA",2,null,null,{"$f":"ROUND(E184*F184,2)","v":0}]
[null,"XVI.2","PINTURA DE RAYA CENTRAL, SE PINTARA UN ANCHO DE 15 CM DE COLOR PREVIAMENTE AUTORIZADO CON PINTURA PARA TRAFICO MARCA SEMEX O EQUIVALENTE, Y SE LE APLICARA UN REFLEJANTE CON MICROESFERA, Y SU APLICACION SERA SEGUN LO INDICADO EN EL MANUAL DE DISPOSITIVOS PARA EL CONTROL DEL TRANSITO EN CALLES Y CARRETERAS INCLUYE: MATERIALES MANO DE OBRA Y HERRAMIENTA.","ML",643.70000000000005,null,null,0]
[null,"XVI.3","SUMINISTRO Y COLOCACIÓN DE INDICADORES DE ALINEAMIENTO DE 100 x 13 CMS. DE CONCRETO HIDRÁULICO F´c=150 KG/CM2. T.M.A. 3/4\" REV. NORMAL. ARMADO CON VARILLA DEL No. 3, ANCLADO CON BASE DE CONCRETO, SU COLOCACIÓN Y FABRICACIÓN SERA LO INDICADO EN EL MANUAL DE DISPOSITIVOS PARA EL CONTROL DEL TRANSITO EN CALLES Y CARRETERAS. INCLUYE: MATERIALES, MANO DE OBRA Y HERRAMIENTA.","PZA",50,null,null,0]
[null,"XVI.4","SUMINISTRO Y COLOCACION DE BARRA DE CONFINAMIENTO TIPO TRAPEZOIDE DE COLOR AMARILLO, CON  REFLEJANTE EN UN SOLO LADO, Y SU COLOCACION SERA SEGUN LO INDICADO EN EL MANUAL DE DISPOSITIVOS PARA EL CONTROL DEL TRANSITO EN CALLES Y CARRETERAS. INCLUYE: MATERIALES, MANO DE OBRA  Y HERRAMIENTA.","PZA",184,null,null,0]
[null,"XVI.5","SUMINISTRO Y COLOCACION DE VIALETAS DE 10x10 CMS DE COLOR BLANCO, CON  REFLEJANTE EN UN SOLO LADO, Y SU COLOCACION SERA SEGUN LO INDICADO EN EL MANUAL DE DISPOSITIVOS PARA EL CONTROL DEL TRANSITO EN CALLES Y CARRETERAS. INCLUYE: MATERIALES, MANO DE OBRA  Y HERRAMIENTA.","PZA",21,null,null,0]
[null,"XVI.6","PINTURA DE RAYA LATERAL, SE PINTARA UN ANCHO DE 10 CMS DE COLOR BLANCO CON PINTURA PARA TRAFICO MARCA SEMEX O EQUIVALENTE, Y SE LE APLICARA UN REFLEJANTE CON MICROESFERA, Y SU APLICACION SERA SEGUN LO INDICADO EN EL MANUAL DE DISPOSITIVOS PARA EL CONTROL DEL TRANSITO EN CALLES Y CARRETERAS INCLUYE: MATERIALES MANO DE OBRA Y HERRAMIENTA.","ML",643.70000000000005,null,null,0]
[null,"XVI.7","FABRICACION Y COLOCACION DE SEÑALES DP MAXIMA 40 KM/H. DE 117 x 117 CMS DE PROTECCION DE OBRA FABRICADA EN LAMINA GALVANIZADA ACABADO ESMALTE, LETRAS Y SIMBOLOS EN VINIL EN ALTA INTENSIDAD, POSTE CUADRADO DE 1 1/2\" x 1 1/2\" CAL. 14. SUJETA CON TORNILLERIA Y TUERCAS CON GUASA DE PRESION, Y ANCLADO EN BASE DE CONCRETO. INCLUYE: MATERIALES MANO DE OBRA Y HERRAMIENTA.( UNA VEZ CONCLUIDOS LOS TRABAJOS SE RECOGERAN Y SE ENTREGARAN EN EL LUGAR QUE INDIQUE LA SUPERVISION DE OBRA POR PARTE DE LA DIRECCION DE MAQUINARIA PESADA Y PAVIMENTACION DEL GOBIERNO DEL ESTADO DE BAJA CALIFORNIA SUR ).\nNOTA: TODO EL SEÑALAMIENTO DEBERA SER NUEVO.","PZA",4]
[null,"XVI.8","FABRICACION Y COLOCACION DP  INDICADORES DE OBSTACULOS , DE 30 x 122 CMS DE PROTECCION DE OBRA FABRICADA EN LAMINA GALVANIZADA ACABADO ESMALTE, LETRAS Y SIMBOLOS EN VINIL EN ALTA INTENSIDAD, POSTE CUADRADO DE 1 1/2\" x 1 1/2\" CAL. 14. SUJETA CON TORNILLERIA Y TUERCAS CON GUASA DE PRESION, Y ANCLADO EN BASE DE CONCRETO. INCLUYE: MATERIALES MANO DE OBRA Y HERRAMIENTA.( UNA VEZ CONCLUIDOS LOS TRABAJOS SE RECOGERAN Y SE ENTREGARAN EN EL LUGAR QUE INDIQUE LA SUPERVISION DE OBRA POR PARTE DE LA DIRECCION DE MAQUINARIA PESADA Y PAVIMENTACION DEL GOBIERNO DEL ESTADO DE BAJA CALIFORNIA SUR ).\nNOTA: TODO EL SEÑALAMIENTO DEBERA SER NUEVO.","PZA",4]
[null,"XVI.9","SUMINISTRO Y COLOCACION DE SEÑALIZACION DE NOMENCLATURA DE CALLES FABRICADA EN LAMINA GALVANIZADA ACABADO ESMALTE, LETRAS Y SIMBOLOS EN VINIL EN ALTA INTENSIDAD, POSTE CUADRADO DE 1 1/2\" x 1 1/2\" CAL. 14. SUJETA CON TORNILLERIA Y TUERCAS CON GUASA DE PRESION, Y ANCLADO EN BASE DE CONCRETO. INCLUYE: MATERIALES MANO DE OBRA Y HERRAMIENTA.( UNA VEZ CONCLUIDOS LOS TRABAJOS SE RECOGERAN Y SE ENTREGARAN EN EL LUGAR QUE INDIQUE LA SUPERVISION DE OBRA POR PARTE DE LA DIRECCION DE MAQUINARIA PESADA Y PAVIMENTACION DEL GOBIERNO DEL ESTADO DE BAJA CALIFORNIA SUR ).\nNOTA: TODO EL SEÑALAMIENTO DEBERA SER NUEVO.","PZA",3,null,null,0]
[null,"XVI.10","SEÑAL RESTRICTIVA DE REDUCTOR DE VELOCIDAD EN CRUCES DE VIALIDADES CON INDICACION DE LIMITE DE VELOCIDAD  SR-9 \"30 Km/h\"","PZA",4,null,null,0]
[null,"XVI.11","SEÑAL RESTRICTIVA DE CORTESIA DE ALTO EN CRUCES DE VIALIDADES CON INDICACION DE ALTO TOTAL  SR-6","PZA",2,null,null,0]
[null,"XVI.12","SEÑAL PREVENTIVA EN CRUCES DE VIALIDADES CON INDICACION CRUCE DE ESCOLARES SP-32","PZA",2,null,null,0]
[null,"XVI.13","SUMINISTRO Y APLICACIÓN DE PINTURA VINILICA AHULADA MARCA COMEX, EN COLOR BLANCO O AMARILLO (PREVIAMENTE AUTORIZADO) EN TRAMOS RECTOS Y ROJO EN CURVAS, A DOS MANOS EN GUANICIONES DE CONCRETO, INCLUYE: PREPARACION DE LA SUPERFICIE, LIMPIEZA, MATERIALES, MANO DE OBRA Y HERRAMIENTA.","ML",757.76,null,null,0]
[null,"XVI.14","PINTADO DE SIMBOLO INTERNACIONAL PERSONAS CON CAPACIDADES DIFERENTES EN DISEÑO Y DIMENSIONES SEGUN LA NORMATIVIDAD VIGENTE (N.T.C. DEL REGLAMENTO DE CONSTRUCCIONES PARA EL ESTADO DE B.C. SUR), EN RAMPAS DE ACCESO. LA FIGURA Y SU CONTORNO SERA CON PINTURA EN COLOR AMARILLO TRANSITO. INCLUYE: LIMPIEZA Y PREPARACION DE LA SUPERFICIE, TRAZOS NECESARIOS, MOLDES, MATERIALES, MANO DE OBRA, HERRAMIENTA NECESARIA.","PZA",8,null,null,{"$f":"ROUND(E197*F197,2)","v":0}]
[null,"XVI.15","SUMINISTRO Y APLICACION DE PINTURA EN COLOR AZUL PANTONE No. 294, SEGUN LA NORMATIVIDAD VIGENTE (N.T.C. DEL REGLAMENTO DE CONSTRUCCIONES PARA EL ESTADO DE B.C. SUR), EN RAMPAS DE ACCESO A PERSONAS CON CAPACIDADES DIFERENTES. INCLUYE: LIMPIEZA Y PREPARACION DE LA SUPERFICIE, TRAZOS NECESARIOS, MATERIALES, MANO DE OBRA, HERRAMIENTA NECESARIA.","M2",26.62,null,null,{"$f":"ROUND(E198*F198,2)","v":0}]
[null,null,null,null,null,null,"SUB TOTAL SEÑALAMIENTO VERTICAL Y HORIZONTAL :",{"$f":"SUM(H184:H198)","v":0}]
[null,"XVII.- LIMPIEZA DE OBRA"]
[null,"XVII.1","LIMPIEZA DE OBRA DURANTE PROCESO Y AL TERMINO DE ESTA. INCLUYE: ACOPIO, CARGA, ACARREO DE MATERIALES Y ESCOMBRO PRODUCTO DE LOS TRABAJOS EJECUTADOS FUERA DE LA OBRA, HASTA EL SITIO AUTORIZADO, SEGUN LO INDIQUE LA SUPERVISION, LA MANO DE OBRA, HERRAMIENTA Y EQUIPO NECESARIO.","LOTE",1,null,null,{"$f":"ROUND(E201*F201,2)","v":0}]
[null,null,null,null,null,null,"SUB TOTAL :  LIMPIEZA DE OBRA",{"$f":"H201","v":0}]
[null,null,null,null,null,null,"SUBTOTAL",{"$f":"SUM(H40,H43,H49,H78,H87,H97,H109,H115,H123,H137,H140,H156,H166,H174,H182,H199,H202)","v":0}]
[null,null,null,null,null,null,"IVA",{"$f":"H203*0.16","v":0}]
[null,null,null,null,null,null,"TOTAL",{"$f":"H204+H203","v":0}]